bitfinex/quotes_ETHUSD_20250404
["timestamp","ask_amount","ask_price","bid_price","bid_amount"]
[1743790451553,6.0633,1814.2,1813.8,5.51321]
[1743790451766,5.51209,1814.2,1813.8,11.02632]
[1743790451967,5.51266,1814.1,1813.7,5.51357]
[1743790452168,5.513,1813.9,1813.6,6.28836]
[1743790452367,5.513,1813.9,1813.6,6.28839]
[1743790452692,5.51272,1814.0,1813.6,6.28839]
[1743790452870,5.51272,1814.0,1813.7,5.51358]
[1743790453387,6.2775,1814.1,1813.7,5.51339]
[1743790453676,6.32848,1814.4,1814.0,5.51258]
[1743790453873,11.84011,1814.4,1814.0,6.33898]
[1743790454065,5.51197,1814.3,1813.9,5.51288]
[1743790454243,6.3284,1814.4,1814.1,5.51235]
[1743790454578,5.51191,1814.3,1814.0,5.51258]
[1743790455274,5.51223,1814.2,1813.8,6.33956]
[1743790455475,5.51223,1814.2,1813.8,11.85268]
[1743790455664,5.51223,1814.2,1813.8,11.8527]
[1743790455869,5.51223,1814.2,1813.8,7.52479]
[1743790456076,5.51223,1814.2,1813.8,13.03794]
[1743790456274,5.51223,1814.2,1813.8,7.52479]
[1743790456644,5.51223,1814.2,1813.9,5.51294]
[1743790456875,0.8169,1814.4,1813.8,2.01167]
[1743790457170,5.51036,1814.8,1814.4,5.51128]
[1743790457372,11.02086,1814.8,1814.4,5.51128]
[1743790457768,5.51036,1814.8,1814.4,5.51128]
[1743790458072,5.51091,1814.6,1814.2,11.02401]
[1743790458273,5.51091,1814.6,1814.2,12.201581]
[1743790458687,5.51091,1814.6,1814.2,6.689531]
[1743790458888,5.51091,1814.6,1814.2,12.201441]
[1743790459097,11.02193,1814.6,1814.2,12.201441]
[1743790459391,11.02193,1814.6,1814.2,6.689481]
[1743790459753,5.51091,1814.6,1814.2,1.177571]
[1743790459954,5.51091,1814.6,1814.2,5.51178]
[1743790460155,5.51059,1814.7,1814.3,11.02339]
[1743790460388,5.51065,1814.7,1814.3,5.51155]
[1743790460591,5.51065,1814.7,1814.3,11.02313]
[1743790460756,5.51065,1814.7,1814.4,5.51128]
[1743790460959,5.51029,1814.8,1814.4,11.95293396]
[1743790461159,5.51029,1814.8,1814.4,6.44162396]
[1743790461390,6.37916,1814.9,1814.5,5.51091]
[1743790461573,0.8692,1814.9,1814.4,0.93034396]
[1743790461776,5.51065,1814.7,1814.4,6.44179396]
[1743790461985,5.51065,1814.7,1814.4,0.93034396]
[1743790462288,5.51065,1814.7,1814.5,0.8195]
[1743790462792,11.02143,1814.7,1814.5,0.8195]
[1743790463091,5.51065,1814.7,1814.4,0.93034396]
[1743790463469,11.02143,1814.7,1814.4,0.93034396]
[1743790463673,5.51065,1814.7,1814.4,0.93034396]
[1743790464166,11.02139,1814.7,1814.4,0.93034396]
[1743790464501,5.51126,1814.5,1814.2,5.51202]
[1743790464795,5.51126,1814.5,1814.1,6.31344]
[1743790465097,5.51139,1814.5,1814.2,5.51201]
[1743790465394,11.02275,1814.5,1814.1,6.31342]
[1743790465596,5.51131,1814.5,1814.1,0.8011]
[1743790465762,5.51131,1814.5,1814.1,6.3133]
[1743790466092,5.51131,1814.5,1814.2,5.51194]
[1743790466293,9.2859,1814.7,1814.3,5.51158]
[1743790466592,5.51029,1814.8,1814.5,5.51105]
[1743790466772,5.51029,1814.8,1814.5,5.51113]
[1743790466973,5.51029,1814.8,1814.5,6.613387]
[1743790467176,12.35816,1814.9,1814.5,6.613387]
[1743790467369,17.86831,1814.9,1814.5,7.385287]
[1743790467575,5.51026,1814.8,1814.5,7.385287]
[1743790467799,5.51057,1814.7,1814.3,6.28373]
[1743790468163,5.51095,1814.6,1814.3,6.28373]
[1743790468998,5.51057,1814.7,1814.3,6.2836]
[1743790469193,5.51099,1814.6,1814.3,0.772]
[1743790469574,5.51058,1814.7,1814.3,6.28364]
[1743790469776,5.51086,1814.6,1814.2,5.51192]
[1743790470105,5.51086,1814.6,1814.3,0.551192]
[1743790470277,5.51086,1814.6,1814.2,11.02389]
[1743790470482,11.02191,1814.6,1814.2,5.51192]
[1743790470789,5.51086,1814.6,1814.2,11.02383]
[1743790470993,5.51116,1814.5,1814.2,5.51191]
[1743790471290,0.7604,1814.5,1814.1,0.7992]
[1743790471502,5.5132,1813.9,1813.6,0.7952]
[1743790471708,5.5132,1813.9,1813.6,6.939926]
[1743790471875,5.51273,1814.0,1813.7,5.5135]
[1743790472205,5.51273,1814.0,1813.6,12.453636]
[1743790472404,5.51273,1814.0,1813.6,16.30263764]
[1743790472706,11.0256,1814.0,1813.7,1.63026376]
[1743790472893,5.51379,1813.7,1813.4,6.31587]
[1743790473406,11.43468,1814.0,1813.5,5.51397]
[1743790473407,5.51298,1813.9,1813.5,5.51397]
[1743790473704,11.02613,1813.9,1813.5,5.51397]
[1743790473881,11.02613,1813.9,1813.5,6.696966]
[1743790474072,5.922,1814.0,1813.5,1.182996]
[1743790474073,5.51329,1813.8,1813.5,1.182996]
[1743790474574,5.51369,1813.7,1813.5,1.182996]
[1743790474776,11.0262,1813.9,1813.5,6.697016]
[1743790475177,5.51329,1813.8,1813.5,6.697016]
[1743790476204,11.02681,1813.8,1813.5,1.182996]
[1743790476393,11.0268,1813.8,1813.5,1.182996]
[1743790476602,5.51374,1813.7,1813.4,0.8015]
[1743790476927,5.51374,1813.7,1813.4,5.51445]
[1743790477212,5.51374,1813.7,1813.3,5.51466]
[1743790477586,6.33859,1813.8,1813.4,11.02872]
[1743790477785,6.33859,1813.8,1813.4,5.51433]
[1743790477983,6.33859,1813.8,1813.4,6.065763]
[1743790478184,6.33859,1813.8,1813.4,11.580093]
[1743790478387,5.51362,1813.7,1813.4,0.551433]
[1743790478589,0.8253,1813.8,1813.2,6.32048]
[1743790478907,5.51413,1813.6,1813.2,6.32048]
[1743790479071,5.51424,1813.5,1813.2,0.8054]
[1743790479279,5.51466,1813.4,1813.0,6.28629]
[1743790479619,5.51483,1813.3,1813.0,0.7706]
[1743790479910,5.51483,1813.3,1813.0,7.466512]
[1743790480279,6.32845,1813.4,1813.0,12.982032]
[1743790480593,0.8138,1813.4,1813.0,1.950842]
[1743790480789,0.8138,1813.4,1812.8,5.51628]
[1743790480790,5.51511,1813.2,1812.8,5.51628]
[1743790480987,5.51511,1813.2,1812.8,5.51613]
[1743790481186,5.922,1813.2,1812.7,6.29139]
[1743790481399,5.51566,1813.1,1812.7,6.29139]
[1743790481780,16.95243,1813.2,1812.8,5.5162]
[1743790482117,11.43712,1813.2,1812.8,6.696946]
[1743790482321,6.34141,1813.1,1812.5,6.30562]
[1743790482622,6.34141,1813.1,1812.6,5.51676]
[1743790482623,5.51585,1813.0,1812.6,5.51676]
[1743790482792,5.51585,1813.0,1812.6,11.03352]
[1743790482977,11.03176,1813.0,1812.6,5.51676]
[1743790483184,5.51585,1813.0,1812.6,5.51676]
[1743790483406,11.85698,1813.1,1812.7,5.51643]
[1743790483625,6.34143,1813.1,1812.7,5.51643]
[1743790483918,6.34143,1813.1,1812.7,11.03291]
[1743790484123,5.51575,1813.0,1812.7,5.51643]
[1743790484282,6.34143,1813.1,1812.7,5.51643]
[1743790484483,6.34143,1813.1,1812.7,6.7379875]
[1743790484823,5.51423,1813.5,1813.2,5.51509]
[1743790485124,5.51423,1813.5,1813.1,6.32611]
[1743790485125,5.51433,1813.5,1813.1,6.32611]
[1743790485420,6.30159,1813.6,1813.2,5.51496]
[1743790485592,5.51421,1813.5,1813.2,5.51496]
[1743790485790,5.51421,1813.5,1813.2,6.699057]
[1743790485991,5.51421,1813.5,1813.2,1.184097]
[1743790486219,5.51421,1813.5,1813.2,6.699187]
[1743790486995,5.51421,1813.5,1813.2,1.184097]
[1743790487229,5.51466,1813.4,1813.1,6.32604]
[1743790487623,5.51495,1813.3,1813.0,5.51566]
[1743790487827,5.51513,1813.2,1812.9,6.30308]
[1743790488023,5.51495,1813.3,1812.9,13.000895]
[1743790488204,5.51523,1813.2,1812.9,7.484915]
[1743790488414,5.51495,1813.3,1812.9,7.484915]
[1743790488621,11.02996,1813.3,1812.9,7.484915]
[1743790488816,5.51495,1813.3,1813.0,5.51563]
[1743790489221,11.02993,1813.3,1812.9,7.484915]
[1743790489421,5.51495,1813.3,1812.9,13.000845]
[1743790489742,5.51495,1813.3,1813.0,1.3000845]
[1743790490039,5.51495,1813.3,1813.0,6.8157045]
[1743790490443,5.51423,1813.5,1813.1,5.51536]
[1743790490642,5.51459,1813.4,1813.0,11.03128]
[1743790490817,5.51484,1813.3,1813.0,5.51559]
[1743790491011,5.51484,1813.3,1812.9,6.30304]
[1743790491217,5.51555,1813.1,1812.9,0.7871]
[1743790491416,5.51555,1813.1,1812.8,5.51606]
[1743790491835,5.51576,1813.0,1812.7,7.5004275]
[1743790492042,5.51576,1813.0,1812.7,6.27887]
[1743790492342,5.51523,1813.2,1812.8,5.51618]
[1743790492524,5.51543,1813.1,1812.8,5.51617]
[1743790492728,5.51523,1813.2,1812.8,11.03237]
[1743790493358,11.03052,1813.2,1812.8,5.51617]
[1743790493649,5.51523,1813.2,1812.8,5.51617]
[1743790493814,5.51523,1813.2,1812.9,5.516]
[1743790494012,5.51523,1813.2,1812.9,5.51601]
[1743790494222,5.51543,1813.1,1812.8,5.51617]
[1743790494425,5.51612,1812.9,1812.7,0.7623]
[1743790494677,5.51612,1812.9,1812.6,5.51691]
[1743790495021,5.51577,1813.0,1812.7,5.5166]
[1743790495252,5.51511,1813.2,1812.9,0.8074]
[1743790495548,5.51487,1813.3,1812.9,6.32338]
[1743790495846,11.02991,1813.3,1812.9,6.32331]
[1743790496055,5.51511,1813.2,1812.9,6.32331]
[1743790496212,5.51511,1813.2,1812.9,7.507267]
[1743790496647,5.51481,1813.3,1812.9,13.023187]
[1743790496853,5.51454,1813.4,1813.1,5.51529]
[1743790497216,11.43524,1813.5,1813.1,5.51529]
[1743790497842,5.51424,1813.5,1813.2,6.26656]
[1743790498154,5.51396,1813.6,1813.3,6.141296]
[1743790498568,11.02804,1813.6,1813.3,0.626656]
[1743790498930,5.51421,1813.5,1813.3,0.626656]
[1743790499553,5.51396,1813.6,1813.3,0.626656]
[1743790499869,11.02883,1813.5,1813.2,0.7515]
[1743790500236,5.51459,1813.4,1813.2,0.7515]
[1743790500440,5.51426,1813.5,1813.2,6.26651]
[1743790500761,5.5148,1813.3,1813.0,0.7966]
[1743790501064,5.51585,1813.0,1812.8,0.7966]
[1743790501368,5.51546,1813.1,1812.8,6.31276]
[1743790501570,5.51602,1812.9,1812.6,1.969359]
[1743790501733,5.51602,1812.9,1812.6,7.486249]
[1743790501933,5.51602,1812.9,1812.6,7.486129]
[1743790502171,5.51602,1812.9,1812.6,13.002959]
[1743790502347,5.51572,1813.0,1812.7,5.51662]
[1743790502545,5.51572,1813.0,1812.6,7.486129]
[1743790502744,5.51604,1812.9,1812.6,7.486129]
[1743790503038,5.51604,1812.9,1812.2,0.7781]
[1743790503039,0.7907,1812.7,1812.2,0.7781]
[1743790503233,5.51733,1812.5,1812.2,6.29624]
[1743790503472,11.03475,1812.5,1812.2,0.7781]
[1743790503646,5.51755,1812.4,1812.2,0.7781]
[1743790503845,5.51755,1812.4,1812.2,1.417736]
[1743790504072,5.51755,1812.4,1812.1,5.61845]
[1743790504878,5.51755,1812.4,1812.1,5.61833]
[1743790504879,5.51765,1812.4,1812.1,5.61833]
[1743790505077,5.51765,1812.4,1812.1,0.1]
[1743790505275,5.51765,1812.4,1812.1,5.61845]
[1743790505780,5.51765,1812.4,1812.1,5.61841]
[1743790505987,5.51756,1812.4,1812.2,0.561841]
[1743790506194,5.51756,1812.4,1812.1,0.1]
[1743790506397,5.51756,1812.4,1812.1,5.61842]
[1743790506573,11.03475,1812.5,1812.1,5.61842]
[1743790506762,5.51694,1812.6,1812.2,5.51789]
[1743790506962,16.9525,1812.7,1812.3,5.51765]
[1743790507267,5.51614,1812.9,1812.5,5.51723]
[1743790507595,5.51614,1812.9,1812.6,0.7754]
[1743790507794,5.51574,1813.0,1812.6,6.29217]
[1743790508097,6.6775,1813.2,1812.6,0.7754]
[1743790508281,11.82005,1813.4,1813.0,6.29092]
[1743790508487,5.51497,1813.3,1813.0,7.471613]
[1743790508675,11.02996,1813.3,1813.0,1.955993]
[1743790508997,11.03045,1813.2,1813.0,0.7753]
[1743790509198,5.51486,1813.3,1813.0,0.7753]
[1743790509704,5.51486,1813.3,1813.0,6.29095]
[1743790510095,5.51486,1813.3,1813.0,0.7753]
[1743790510096,11.02985,1813.3,1813.0,0.7753]
[1743790510605,11.02983,1813.3,1813.0,0.7753]
[1743790510793,5.5152,1813.2,1813.0,1.404416]
[1743790511099,5.51486,1813.3,1813.0,1.404416]
[1743790511281,8.51425,1813.5,1813.0,1.404416]
[1743790511481,5.51425,1813.5,1813.2,5.51499]
[1743790511700,11.02863,1813.5,1813.1,5.51512]
[1743790511897,0.7908,1813.6,1813.2,5.51489]
[1743790511898,6.30473,1813.6,1813.2,5.51489]
[1743790512100,5.51364,1813.7,1813.3,0.05514838]
[1743790512271,5.51364,1813.7,1813.4,5.51434]
[1743790512676,11.02741,1813.7,1813.3,5.51476]
[1743790512900,11.02741,1813.7,1813.3,6.617742]
[1743790513273,5.51364,1813.7,1813.3,6.617642]
[1743790513493,5.51364,1813.7,1813.3,11.02931]
[1743790513697,12.21204,1813.9,1813.2,5.51506]
[1743790513915,5.51398,1813.6,1813.2,11.03002]
[1743790514107,5.51398,1813.6,1813.3,5.5147]
[1743790514488,5.51422,1813.5,1813.2,5.51496]
[1743790514830,5.51422,1813.5,1813.1,11.82018]
[1743790515017,11.02867,1813.5,1813.1,6.30478]
[1743790515211,5.51495,1813.3,1812.9,6.34565]
[1743790515615,5.51495,1813.3,1812.9,11.86155]
[1743790515804,5.51495,1813.3,1813.0,5.5157]
[1743790516197,11.43125,1813.5,1812.9,0.8298]
[1743790516395,11.43125,1813.5,1813.2,5.51508]
[1743790516802,11.43125,1813.5,1813.1,5.51541]
[1743790516999,5.51466,1813.4,1813.1,5.51541]
[1743790517320,5.51522,1813.2,1812.9,0.8298]
[1743790517501,5.51522,1813.2,1812.8,11.03253]
[1743790517890,6.29812,1813.2,1812.8,5.51621]
[1743790518086,11.81352,1813.2,1812.8,11.03237]
[1743790518293,5.51611,1812.9,1812.6,5.51678]
[1743790518491,5.51638,1812.8,1812.5,6.33768]
[1743790518718,5.51611,1812.9,1812.5,7.5231]
[1743790518917,5.51643,1812.8,1812.5,7.5231]
[1743790519316,8.51543,1813.1,1812.5,7.5231]
[1743790519317,3.0,1813.0,1812.5,2.00602]
[1743790519511,8.51577,1813.0,1812.7,5.51652]
[1743790519721,5.51603,1812.9,1812.6,5.5169]
[1743790520010,14.0317,1813.0,1812.6,5.5167]
[1743790520319,8.51576,1813.0,1812.6,11.03351]
[1743790520520,6.29821,1813.2,1812.8,5.5163]
[1743790520703,11.81355,1813.2,1812.8,6.619588]
[1743790520899,6.29821,1813.2,1812.8,12.135788]
[1743790521114,5.51512,1813.2,1812.8,6.619598]
[1743790521311,5.51554,1813.1,1812.8,5.51631]
[1743790521700,5.51511,1813.2,1812.9,5.51588]
[1743790521898,11.03038,1813.2,1812.9,6.32788]
[1743790522099,5.51562,1813.1,1812.7,6.30759]
[1743790522315,5.51562,1813.1,1812.8,5.51632]
[1743790522502,5.51562,1813.1,1812.8,11.03253]
[1743790522703,5.51517,1813.2,1812.8,6.698543]
[1743790523190,5.51525,1813.2,1812.9,5.51592]
[1743790523390,8.51492,1813.3,1813.0,5.5156]
[1743790524023,5.51424,1813.5,1813.1,6.30627]
[1743790524226,5.51424,1813.5,1813.1,6.9424125]
[1743790524522,5.51424,1813.5,1812.9,0.791]
[1743790524523,5.51523,1813.2,1812.9,0.791]
[1743790524892,0.7755,1813.3,1812.9,0.791]
[1743790525116,5.51531,1813.2,1812.9,0.791]
[1743790525431,11.80529,1813.3,1812.9,0.791]
[1743790525605,6.29032,1813.3,1813.0,5.51571]
[1743790525920,11.80538,1813.3,1812.9,6.30681]
[1743790526131,6.29032,1813.3,1812.9,11.8227]
[1743790526301,6.29032,1813.3,1812.9,6.30681]
[1743790526500,5.51512,1813.2,1812.9,6.30681]
[1743790527228,6.29032,1813.3,1812.9,6.30681]
[1743790527429,6.29032,1813.3,1813.0,5.5157]
[1743790527798,5.51482,1813.3,1813.0,5.5157]
[1743790527999,5.51425,1813.5,1813.1,5.51513]
[1743790528228,11.02863,1813.5,1813.1,6.066643]
[1743790528537,5.51453,1813.4,1813.1,6.066643]
[1743790529541,5.51453,1813.4,1813.0,5.51557]
[1743790529708,11.02857,1813.5,1813.1,5.51525]
[1743790529910,5.51425,1813.5,1813.1,11.03053]
[1743790530155,5.51395,1813.6,1813.2,5.51497]
[1743790530359,5.51334,1813.8,1813.4,0.7784]
[1743790530552,5.51334,1813.8,1813.5,5.51408]
[1743790531048,5.51325,1813.9,1813.5,5.51414]
[1743790531413,6.364305,1813.9,1813.4,0.7784]
[1743790531612,6.364305,1813.9,1813.3,5.51467]
[1743790531613,5.514,1813.6,1813.3,5.51467]
[1743790532107,5.51365,1813.7,1813.3,11.02934]
[1743790532108,5.51364,1813.7,1813.3,11.02934]
[1743790532328,11.0274,1813.7,1813.3,11.02936]
[1743790532627,5.51407,1813.6,1813.3,5.51467]
[1743790533038,11.02813,1813.6,1813.2,11.79001]
[1743790533415,5.51431,1813.5,1813.2,0.7599]
[1743790533619,5.51431,1813.5,1813.2,6.27489]
[1743790533819,5.51452,1813.4,1813.2,0.7599]
[1743790534268,5.51431,1813.5,1813.2,6.275]
[1743790534563,11.02874,1813.5,1813.2,0.7599]
[1743790534749,11.02803,1813.6,1813.2,6.27485]
[1743790534955,5.5136,1813.7,1813.3,11.02947]
[1743790535320,3.0,1813.7,1813.5,5.51417]
[1743790535525,11.02683,1813.8,1813.4,5.51448]
[1743790535769,11.02683,1813.8,1813.4,11.02885]
[1743790535947,5.51375,1813.7,1813.3,5.51469]
[1743790536160,5.51375,1813.7,1813.4,5.51445]
[1743790536340,5.51391,1813.6,1813.3,6.75695497]
[1743790536677,5.51375,1813.7,1813.4,5.5145]
[1743790537332,5.51333,1813.8,1813.5,11.02821]
[1743790537532,5.51333,1813.8,1813.5,5.5141]
[1743790537854,11.02682,1813.8,1813.5,5.5141]
[1743790538055,5.51359,1813.7,1813.4,5.51441]
[1743790538355,5.51359,1813.7,1813.4,11.02879]
[1743790538775,5.51359,1813.7,1813.4,5.51438]
[1743790538931,8.513,1813.9,1813.5,5.51409]
[1743790539143,0.7594,1814.4,1814.1,5.51219]
[1743790539374,5.51077,1814.7,1814.1,0.551219]
[1743790539681,11.78022,1814.8,1814.4,5.51127]
[1743790539832,6.2697,1814.8,1814.4,5.51127]
[1743790540031,6.2697,1814.8,1814.5,5.51101]
[1743790540032,0.7594,1814.8,1814.5,5.51101]
[1743790540393,11.12032,1814.9,1814.5,5.51105]
[1743790540679,5.51025,1814.8,1814.5,1.102251]
[1743790541044,5.51112,1814.6,1814.2,5.51198]
[1743790541231,5.51085,1814.6,1814.2,5.51192]
[1743790541433,8.51067,1814.7,1814.4,5.51131]
[1743790541931,3.0,1814.7,1814.4,5.51131]
[1743790542164,3.0,1814.7,1814.4,11.02261]
[1743790542365,3.0,1814.7,1814.5,5.51111]
[1743790542578,3.0,1814.7,1814.5,11.02209]
[1743790542882,5.91,1814.8,1814.5,5.51098]
[1743790543181,0.1,1814.9,1814.5,5.51097]
[1743790543378,0.1,1814.9,1814.6,5.51084]
[1743790543601,5.60996,1814.9,1814.6,6.061924]
[1743790543782,5.60996,1814.9,1814.6,0.551084]
[1743790544085,11.12009,1814.9,1814.6,0.551084]
[1743790544299,0.1,1814.9,1814.2,5.51203]
[1743790544444,5.511,1814.6,1814.3,5.51176]
[1743790544643,11.0213,1814.7,1814.3,5.51176]
[1743790544840,5.51089,1814.6,1814.2,0.7891]
[1743790545083,5.51127,1814.5,1814.2,0.7891]
[1743790545292,5.51161,1814.4,1814.2,0.7891]
[1743790545457,5.51193,1814.3,1814.0,5.51265]
[1743790545873,5.5122,1814.2,1813.9,6.30205]
[1743790546079,5.51193,1814.3,1813.9,6.30205]
[1743790546283,5.51193,1814.3,1814.0,6.142815]
[1743790546684,5.5117,1814.4,1814.1,5.51231]
[1743790547385,5.51116,1814.5,1814.1,5.5122]
[1743790547546,11.02255,1814.5,1814.1,5.5122]
[1743790547883,5.51095,1814.6,1814.2,5.51189]
[1743790548087,5.51057,1814.7,1814.3,6.062949]
[1743790548243,5.51086,1814.6,1814.3,6.062949]
[1743790548447,5.5113,1814.5,1814.1,11.78115]
[1743790548989,5.51055,1814.7,1814.3,11.02323]
[1743790549172,5.51025,1814.8,1814.4,6.31399]
[1743790549697,5.51072,1814.7,1814.4,0.8027]
[1743790549866,5.51072,1814.7,1814.4,6.31414]
[1743790550263,5.51056,1814.7,1814.4,1.98528]
[1743790550485,5.51056,1814.7,1814.4,0.8027]
[1743790550776,5.51056,1814.7,1814.4,6.31406]
[1743790551319,5.51056,1814.7,1814.4,0.8027]
[1743790551476,5.51026,1814.8,1814.4,6.31406]
[1743790551677,11.02081,1814.8,1814.4,6.31406]
[1743790551879,5.51026,1814.8,1814.4,6.31406]
[1743790552077,5.51056,1814.7,1814.4,1.434106]
[1743790552322,5.51101,1814.6,1814.4,0.8027]
[1743790552501,11.02207,1814.6,1814.2,6.34396]
[1743790552820,5.5112,1814.5,1814.2,6.34396]
[1743790553187,5.51205,1814.3,1814.0,1.436005]
[1743790553391,5.51208,1814.2,1813.9,5.51296]
[1743790554088,5.51208,1814.2,1813.9,5.51286]
[1743790554492,11.02436,1814.2,1813.8,6.31908]
[1743790554823,5.51208,1814.2,1813.8,0.8058]
[1743790554989,11.02438,1814.2,1813.8,6.31894]
[1743790555194,11.02439,1814.2,1813.8,12.463994]
[1743790555520,5.51239,1814.1,1813.8,1.437694]
[1743790555717,5.51278,1814.0,1813.6,11.78067]
[1743790556012,5.51299,1813.9,1813.6,0.7531]
[1743790557079,5.51299,1813.9,1813.6,6.26693]
[1743790557276,5.51307,1813.9,1813.6,7.444918]
[1743790557800,5.5133,1813.8,1813.6,0.7531]
[1743790558023,5.51307,1813.9,1813.6,0.7531]
[1743790558239,5.51307,1813.9,1813.6,6.26685]
[1743790558536,5.51309,1813.9,1813.6,6.26673]
[1743790559045,5.51373,1813.7,1813.4,0.7967]
[1743790559541,5.51373,1813.7,1813.4,2.1035295]
[1743790560046,5.51373,1813.7,1813.0,9.06562]
[1743790560047,5.51419,1813.5,1813.2,6.27567]
[1743790560247,0.7991,1813.5,1813.0,0.7911]
[1743790560544,5.51462,1813.4,1813.0,5.51561]
[1743790560844,0.7991,1813.5,1812.9,6.30708]
[1743790561027,5.51492,1813.3,1812.9,11.82291]
[1743790561198,5.51454,1813.4,1813.0,6.697981]
[1743790561399,0.7991,1813.5,1813.0,1.23744399]
[1743790561609,17.70319,1813.7,1813.3,6.32313]
[1743790561904,5.51346,1813.8,1813.4,11.02876]
[1743790562224,6.34368,1813.9,1813.5,5.51408]
[1743790562395,5.51329,1813.8,1813.5,5.51408]
[1743790562820,11.02561,1814.0,1813.6,5.51381]
[1743790563020,5.51311,1813.9,1813.6,0.7822]
[1743790563220,5.51311,1813.9,1813.6,6.29604]
[1743790563422,5.51311,1813.9,1813.6,6.88264268]
[1743790563820,5.51311,1813.9,1813.6,1.36880268]
[1743790564526,11.02631,1813.9,1813.6,1.36880268]
[1743790564827,5.51359,1813.7,1813.3,11.78055]
[1743790565034,5.51359,1813.7,1813.3,6.26589]
[1743790565332,6.33099,1813.8,1813.4,5.51436]
[1743790565534,5.51299,1813.9,1813.5,5.51416]
[1743790565729,5.51299,1813.9,1813.5,11.02819]
[1743790566029,0.7734,1814.0,1813.3,6.26601]
[1743790566203,11.0276,1813.7,1813.3,6.26594]
[1743790566537,11.41523,1814.2,1813.0,0.8268]
[1743790566538,6.27153,1813.6,1813.0,0.8268]
[1743790566700,6.27153,1813.6,1813.2,5.51497]
[1743790566904,6.27153,1813.6,1813.1,11.03074]
[1743790567104,5.51434,1813.5,1813.2,5.51507]
[1743790567408,5.51362,1813.7,1813.4,5.51449]
[1743790567622,6.6968,1813.8,1813.3,0.7827]
[1743790567929,5.51363,1813.7,1813.4,5.51445]
[1743790568123,17.7236,1813.8,1813.4,5.51445]
[1743790568320,5.51293,1814.0,1813.4,1.181179]
[1743790568520,5.5131,1813.9,1813.5,5.51394]
[1743790568696,11.02579,1814.0,1813.6,6.29646]
[1743790568895,11.02575,1814.0,1813.6,6.29646]
[1743790569335,5.51304,1813.9,1813.6,6.29646]
[1743790569834,5.5124,1814.1,1813.7,6.34105]
[1743790570016,5.5124,1814.1,1813.8,6.147225]
[1743790570511,5.5124,1814.1,1813.8,0.634105]
[1743790570714,5.5128,1814.0,1813.7,0.8276]
[1743790571116,5.5128,1814.0,1813.7,6.34115]
[1743790571316,5.51308,1813.9,1813.7,0.8276]
[1743790571537,11.02565,1814.0,1813.7,0.8276]
[1743790571704,5.51285,1814.0,1813.7,0.8276]
[1743790571905,5.51285,1814.0,1813.7,6.34114]
[1743790572130,6.33548,1814.1,1813.7,6.34108]
[1743790572323,6.33548,1814.1,1813.8,5.51317]
[1743790572324,5.51238,1814.1,1813.8,5.51317]
[1743790572520,5.51209,1814.2,1813.7,0.8276]
[1743790572832,11.02324,1814.4,1814.0,5.51256]
[1743790573031,5.51151,1814.4,1814.0,5.51256]
[1743790573233,5.51162,1814.4,1814.0,6.28686]
[1743790573535,5.51328,1813.8,1813.5,0.7849]
[1743790573740,5.51277,1814.0,1813.7,5.51344]
[1743790574036,5.51277,1814.0,1813.6,11.0275]
[1743790574236,5.51342,1813.8,1813.5,0.7849]
[1743790574810,5.513,1813.9,1813.5,6.29883]
[1743790575022,5.513,1813.9,1813.5,6.928713]
[1743790575223,5.513,1813.9,1813.6,5.51383]
[1743790575738,5.513,1813.9,1813.6,5.51379]
[1743790575939,6.30179,1814.0,1813.6,11.02755]
[1743790576233,0.7891,1814.0,1813.5,6.928903]
[1743790576436,0.7891,1814.0,1813.5,0.7849]
[1743790576612,5.51363,1813.7,1813.3,6.30179]
[1743790576817,0.7891,1814.0,1813.4,5.51432]
[1743790576818,5.51344,1813.8,1813.4,5.51432]
[1743790577018,5.51383,1813.7,1813.3,11.81643]
[1743790577639,11.02616,1813.9,1813.5,11.02827]
[1743790577818,11.02616,1813.9,1813.5,6.616917]
[1743790578134,5.51298,1813.9,1813.6,5.51387]
[1743790578333,6.30182,1814.0,1813.6,5.51379]
[1743790578503,0.7891,1814.0,1813.5,6.616987]
[1743790578709,5.51307,1813.9,1813.5,6.616877]
[1743790578942,5.51346,1813.8,1813.5,1.102827]
[1743790579234,5.51368,1813.7,1813.4,5.51434]
[1743790579436,11.02749,1813.7,1813.3,11.81641]
[1743790579638,5.51368,1813.7,1813.3,11.81641]
[1743790579947,6.28122,1813.6,1813.3,5.51464]
[1743790580116,5.51368,1813.7,1813.3,12.13229]
[1743790580313,5.51368,1813.7,1813.4,5.5145]
[1743790580736,5.51368,1813.7,1813.3,6.61761]
[1743790580937,5.51368,1813.7,1813.4,5.51448]
[1743790581244,11.02744,1813.7,1813.4,5.51448]
[1743790581413,11.02743,1813.7,1813.3,5.51464]
[1743790581609,0.7673,1813.8,1813.2,0.05514477]
[1743790581815,6.33079,1814.0,1813.6,11.02764]
[1743790582027,11.84367,1814.0,1813.6,6.616544]
[1743790582239,6.33079,1814.0,1813.6,11.02756]
[1743790582539,5.51243,1814.1,1813.7,11.02703]
[1743790582743,5.51269,1814.0,1813.7,5.51347]
[1743790582909,5.51243,1814.1,1813.8,5.51326]
[1743790583109,5.51243,1814.1,1813.7,5.51347]
[1743790583311,5.51243,1814.1,1813.8,6.064537]
[1743790583542,5.51243,1814.1,1813.8,0.551347]
[1743790583852,11.02497,1814.1,1813.7,5.5134]